bitfinex/quotes_ETHUSD_20241212
["timestamp","ask_amount","ask_price","bid_price","bid_amount"]
[1734039539762,0.23820758,3866.0,3865.6,3.0]
[1734039539974,2.58647,3866.3,3865.6,3.0]
[1734039539975,0.23820758,3865.9,3865.6,3.0]
[1734039540137,2.58615,3866.8,3865.6,3.0]
[1734039540138,0.23820758,3865.8,3865.6,3.0]
[1734039540338,0.23869494,3865.7,3865.6,3.0]
[1734039541157,0.238692,3865.7,3865.6,3.0]
[1734039541564,0.238692,3865.7,3865.6,6.936225]
[1734039541765,0.7654,3867.0,3865.6,6.936225]
[1734039541766,0.39782,3866.9,3865.7,2.58679]
[1734039541968,0.78259277,3866.8,3865.7,2.58679]
[1734039542170,1.18041277,3866.7,3865.7,2.58679]
[1734039542375,1.18041277,3866.7,3865.6,3.7906]
[1734039542376,0.78259277,3866.6,3865.8,2.58675]
[1734039542531,0.78259277,3866.5,3865.8,2.58675]
[1734039542732,0.78259277,3866.4,3865.8,2.58675]
[1734039542933,0.6210407,3866.3,3865.6,3.7906]
[1734039543136,1.5480085,3866.2,3865.6,3.0]
[1734039543388,1.37501135,3866.1,3865.6,3.0]
[1734039543559,0.7826085,3866.0,3865.6,3.0]
[1734039543762,0.59240285,3866.1,3865.6,3.0]
[1734039543763,0.7826085,3865.9,3865.6,3.0]
[1734039543936,0.7826085,3865.8,3865.6,3.0]
[1734039544153,0.19458285,3866.1,3865.6,3.0]
[1734039544350,0.7654,3866.2,3865.6,3.0]
[1734039544351,0.23955259,3865.7,3865.6,3.0]
[1734039544568,0.78441917,3865.7,3865.6,3.0]
[1734039545441,0.78441917,3865.7,3865.6,5.58692]
[1734039545760,0.62283674,3865.7,3865.6,5.58692]
[1734039546270,0.78440106,3865.7,3865.6,5.58692]
[1734039546588,0.78440106,3865.7,3865.6,6.404319]
[1734039546589,0.62283674,3865.7,3865.6,6.404319]
[1734039547163,0.62283674,3865.7,3865.6,7.196719]
[1734039547468,0.40040331,3866.2,3866.0,2.58661]
[1734039547655,0.40040331,3866.2,3866.1,2.58658]
[1734039547850,0.78619371,3866.2,3866.1,2.58658]
[1734039548337,0.78619371,3866.2,3865.6,4.609799]
[1734039548537,0.78619371,3866.1,3866.0,2.58658]
[1734039548946,0.62465044,3866.1,3866.0,2.58658]
[1734039551283,0.62465044,3866.1,3865.6,6.13874455]
[1734039551588,0.62465044,3866.0,3865.6,3.7924]
[1734039551755,0.43757014,3867.2,3865.6,3.7924]
[1734039551756,1.02505375,3865.9,3865.6,3.0]
[1734039551945,0.62465044,3865.8,3865.6,3.0]
[1734039552157,1.02505375,3865.7,3865.6,3.0]
[1734039552567,0.62465044,3865.7,3865.6,3.0]
[1734039553104,4.04270044,3865.7,3865.6,3.0]
[1734039553304,4.70563948,3865.7,3865.6,3.0]
[1734039554772,2.11878948,3865.7,3865.6,3.0]
[1734039555019,1.45585044,3865.7,3865.6,3.0]
[1734039555667,0.62465044,3865.7,3865.6,3.0]
[1734039556492,0.62465044,3865.7,3865.6,1.92254721]
[1734039556899,0.78624134,3865.7,3865.6,1.92254721]
[1734039559036,0.78624134,3865.7,3865.6,4.50946721]
[1734039559176,0.78624134,3865.7,3865.6,1.92254721]
[1734039559916,0.62465044,3865.7,3865.6,1.92254721]
[1734039560089,0.7881,3867.0,3865.6,5.6554369]
[1734039560293,0.7881,3867.6,3866.3,0.8051]
[1734039560491,1.822392,3867.6,3866.6,2.92778969]
[1734039560800,0.7881,3867.6,3866.6,2.92778969]
[1734039560978,0.31485894,3867.9,3866.7,2.58618]
[1734039561205,0.31485894,3867.9,3867.0,2.58593]
[1734039561377,0.31485894,3867.9,3867.1,2.58591]
[1734039561588,0.768,3868.0,3867.1,3.615601]
[1734039561820,0.43743199,3868.2,3867.1,3.615601]
[1734039562323,0.43743199,3868.2,3867.1,1.029691]
[1734039562533,0.43743199,3868.2,3867.1,0.7711]
[1734039563687,0.43743199,3868.2,3867.4,2.5857]
[1734039564405,0.43743199,3868.2,3868.1,2.58524]
[1734039564717,0.43743199,3868.2,3866.6,2.58619]
[1734039564718,0.769,3868.9,3868.0,0.7757]
[1734039564920,1.76354223,3869.0,3868.0,0.7757]
[1734039565300,2.01750645,3869.0,3868.0,0.7757]
[1734039565479,2.58506,3868.4,3867.5,0.7992]
[1734039565682,4.24370941,3868.9,3867.1,0.7992]
[1734039565683,2.58526,3868.1,3867.1,0.7992]
[1734039565943,0.7761,3868.2,3867.1,3.38511]
[1734039566100,0.7761,3868.2,3867.2,2.58584]
[1734039566303,1.21900096,3868.2,3867.3,2.58577]
[1734039566505,0.7761,3868.2,3867.3,2.58577]
[1734039567285,0.7761,3868.2,3867.4,2.58571]
[1734039567780,0.7761,3868.2,3867.2,2.58584]
[1734039567992,0.7761,3868.2,3867.3,2.58578]
[1734039568617,0.7761,3868.2,3866.7,0.759]
[1734039568821,0.21007238,3868.1,3866.8,0.36867897]
[1734039569322,0.7761,3868.2,3866.8,0.36867897]
[1734039569323,0.7761,3868.2,3866.9,2.586]
[1734039569523,0.7634,3868.6,3867.8,2.58544]
[1734039569749,0.7634,3868.6,3867.9,2.58537]
[1734039570840,0.7634,3868.6,3868.0,2.5853]
[1734039571135,2.01750645,3869.0,3868.2,2.58514]
[1734039571136,2.77420645,3869.0,3868.2,2.58514]
[1734039571307,2.77420645,3869.0,3868.1,0.8045]
[1734039571308,0.27742064,3868.9,3868.1,0.8045]
[1734039571936,0.27742064,3868.9,3868.1,3.38974]
[1734039572109,0.27742064,3868.9,3868.2,2.58517]
[1734039572433,2.52024223,3869.0,3868.1,0.8045]
[1734039572845,2.52024223,3869.0,3868.1,3.38974]
[1734039573203,2.52024223,3869.0,3868.1,0.8045]
[1734039573403,2.52024223,3869.0,3868.3,2.5851]
[1734039573906,2.52024223,3869.0,3868.3,2.58509]
[1734039574700,2.52024223,3869.0,3868.1,0.8045]
[1734039574908,1.76354223,3869.0,3868.5,2.58491]
[1734039575316,1.76354223,3869.0,3868.4,2.58503]
[1734039575516,1.76354223,3869.0,3868.2,0.63176597]
[1734039575517,1.76354223,3869.0,3868.5,2.58497]
[1734039575733,1.76354223,3869.0,3868.2,3.21693597]
[1734039575943,1.76354223,3869.0,3868.4,2.58499]
[1734039576634,1.76354223,3869.0,3868.4,2.58503]
[1734039577013,1.76354223,3869.0,3868.2,0.63176597]
[1734039577240,1.76354223,3869.0,3868.5,2.58497]
[1734039577563,1.76354223,3869.0,3868.2,2.58511]
[1734039577739,1.76354223,3869.0,3868.3,2.5851]
[1734039578842,1.76354223,3869.0,3868.1,0.8045]
[1734039579134,1.76354223,3869.0,3868.3,2.58506]
[1734039579342,1.76354223,3869.0,3868.4,2.58498]
[1734039579541,1.76354223,3869.0,3868.1,0.8045]
[1734039579542,1.76354223,3869.0,3868.5,2.58494]
[1734039579829,1.76354223,3869.0,3868.1,0.8045]
[1734039580030,0.7567,3869.5,3868.3,2.58511]
[1734039580368,0.43724846,3869.8,3869.3,2.58444]
[1734039580539,0.43724846,3869.8,3869.0,2.92778969]
[1734039580743,0.43724846,3869.8,3869.6,2.58422]
[1734039581068,0.43724846,3869.8,3869.0,2.92778969]
[1734039581362,0.7617,3870.3,3869.1,0.02584117]
[1734039581555,0.7617,3870.3,3869.1,2.58457]
[1734039582272,2.58411,3869.8,3868.5,0.8227]
[1734039582455,3.34578,3869.9,3868.5,0.8227]
[1734039582762,3.34578,3869.9,3868.4,2.58503]
[1734039582763,2.58435,3869.5,3868.4,2.58503]
[1734039582966,0.258435,3869.4,3868.4,2.58503]
[1734039583554,0.258435,3869.4,3868.5,2.58496]
[1734039583766,0.7617,3869.3,3867.4,0.8227]
[1734039583968,0.258435,3869.4,3867.4,0.8227]
[1734039583969,3.34688,3868.2,3867.4,0.8227]
[1734039584139,3.3469,3868.2,3867.1,2.58591]
[1734039584449,0.7617,3868.2,3867.0,0.8227]
[1734039585465,0.7617,3868.2,3867.2,2.58582]
[1734039585667,0.334681,3868.1,3867.2,2.58582]
[1734039586166,0.334681,3868.1,3867.4,2.58568]
[1734039586340,0.7617,3868.2,3867.4,2.58568]
[1734039588074,0.7617,3868.2,3867.0,0.8227]
[1734039588364,0.7617,3868.2,3867.2,2.58583]
[1734039588665,0.7617,3868.2,3867.3,2.58574]
[1734039589384,0.7617,3868.2,3867.0,0.8227]
[1734039589577,1.096369,3868.2,3867.3,2.58574]
[1734039589881,1.096369,3868.2,3867.0,1.163573]
[1734039589882,0.7617,3868.2,3867.6,2.58557]
[1734039590638,0.7617,3868.2,3867.0,4.09136269]
[1734039590892,0.7617,3868.2,3867.3,2.58573]
[1734039591264,0.5116763,3869.0,3867.0,4.09136269]
[1734039591481,2.58493,3868.6,3867.3,2.58572]
[1734039591679,2.58493,3868.6,3867.0,6.67733269]
[1734039591680,1.065893,3868.5,3867.4,2.58571]
[1734039592361,1.065893,3868.5,3867.0,6.67733269]
[1734039592362,1.065893,3868.5,3867.1,2.5859]
[1734039592530,2.58518,3868.2,3867.1,2.5859]
[1734039593869,0.7774,3868.3,3867.2,2.5858]
[1734039594233,0.7774,3868.3,3866.5,2.92778969]
[1734039594234,0.7774,3868.3,3866.9,2.58603]
[1734039594435,0.7774,3868.3,3866.6,0.775]
[1734039594436,2.58527,3868.1,3866.6,0.775]
[1734039594774,2.58527,3868.1,3867.1,2.58591]
[1734039594975,0.336267,3868.1,3867.1,2.58591]
[1734039595176,2.921527,3868.1,3866.8,2.58607]
[1734039595386,2.921527,3868.1,3866.9,2.58604]
[1734039595548,2.921527,3868.1,3867.0,2.58591]
[1734039595748,0.336267,3868.1,3866.6,0.775]
[1734039595938,3.36252,3868.3,3867.2,2.58583]
[1734039596139,0.7774,3868.3,3866.7,2.95640897]
[1734039596367,2.58518,3868.2,3867.0,2.58598]
[1734039597054,2.58524,3868.1,3867.0,2.58598]
[1734039597254,0.8294,3869.1,3867.7,0.7936]
[1734039597554,0.8294,3869.1,3868.3,2.58511]
[1734039598833,0.8294,3869.1,3868.4,2.58498]
[1734039599340,0.8294,3869.1,3868.0,2.58531]
[1734039599765,0.8294,3869.1,3868.3,2.58505]
[1734039600162,0.8294,3869.1,3868.4,2.58502]
[1734039600569,0.8294,3869.1,3868.5,2.58491]
[1734039600755,0.8294,3869.1,3867.8,0.37213897]
[1734039601076,0.8294,3869.1,3867.1,3.0]
[1734039601077,2.58485,3868.7,3867.3,0.7828]
[1734039601276,0.8281,3868.6,3867.6,2.58556]
[1734039601665,0.8281,3868.6,3867.3,0.7828]
[1734039602044,0.8281,3868.6,3867.9,2.58537]
[1734039602867,0.8281,3868.6,3867.6,2.58551]
[1734039603052,0.8281,3868.6,3867.7,2.58549]
[1734039603461,0.8281,3868.6,3867.6,0.88818097]
[1734039603765,0.8281,3868.6,3867.7,2.58545]
[1734039604551,0.8281,3868.6,3867.8,2.58544]
[1734039605479,0.8281,3868.6,3867.5,2.92778969]
[1734039605680,0.8281,3868.6,3867.5,5.51338969]
[1734039605883,0.8281,3868.6,3867.8,2.58539]
[1734039606179,0.8281,3868.6,3867.9,2.58537]
[1734039606882,0.8281,3868.6,3868.0,2.58529]
[1734039609259,0.8281,3868.6,3867.8,2.34368043]
[1734039611082,0.8281,3868.6,3867.8,4.92909043]
[1734039611287,0.8281,3868.6,3867.8,2.34368043]
[1734039612509,0.8281,3868.6,3867.8,4.92912043]
[1734039613952,0.8281,3868.6,3867.8,2.34368043]
[1734039615033,0.8281,3868.6,3867.8,4.92910043]
[1734039615335,0.796,3869.1,3868.2,2.34368043]
[1734039615474,0.796,3869.1,3868.7,2.34368043]
[1734039617675,0.796,3869.1,3868.3,2.34368043]
[1734039617884,1.134054,3869.1,3868.3,2.34368043]
[1734039619139,1.134054,3869.1,3868.3,4.92878043]
[1734039619140,0.796,3869.1,3868.3,4.92878043]
[1734039620798,0.796,3869.1,3868.3,2.34368043]
[1734039623391,1.06467602,3869.6,3868.8,2.58478]
[1734039623592,1.0,3870.0,3869.9,2.58404]
[1734039623783,1.0,3870.0,3869.9,4.92772043]
[1734039623981,1.0,3870.0,3869.9,7.27140086]
[1734039624185,2.1355791,3871.9,3871.2,2.58316]
[1734039624186,0.8177,3871.7,3871.2,2.58316]
[1734039624379,1.05963843,3871.7,3870.8,2.34368043]
[1734039624620,0.8177,3871.6,3870.4,2.34368043]
[1734039624823,0.8177,3871.0,3869.9,2.34368043]
[1734039625009,0.8177,3871.0,3870.2,2.58378]
[1734039625208,0.8177,3871.0,3869.9,2.34368043]
[1734039625209,0.8177,3871.0,3870.3,2.58375]
[1734039625384,0.8177,3871.0,3870.1,2.91923067]
[1734039625784,0.8177,3871.0,3870.3,2.58377]
[1734039626206,0.8177,3871.0,3870.3,2.58372]
[1734039626922,0.8177,3871.0,3870.1,2.91923067]
[1734039627109,1.157781,3871.0,3870.2,2.58381]
[1734039627312,1.157781,3871.0,3870.1,5.50313067]
[1734039627516,1.157781,3871.0,3870.1,2.91923067]
[1734039627823,2.11051353,3872.0,3869.3,0.8321]
[1734039627824,0.7565,3870.7,3869.7,2.58413]
[1734039628409,0.7565,3870.6,3869.6,2.91923067]
[1734039628596,4.60168432,3871.6,3868.6,0.7747]
[1734039628597,2.91923067,3870.8,3868.6,0.7747]
[1734039628783,2.58439,3869.4,3868.2,2.58517]
[1734039628983,3.38246,3869.3,3868.1,0.758]
[1734039629187,3.720706,3869.3,3867.7,2.58547]
[1734039629426,1.136246,3869.3,3867.5,0.758]
[1734039629627,1.136246,3869.3,3868.6,2.58491]
[1734039629935,1.136246,3869.3,3867.7,2.58551]
[1734039629936,0.798,3869.3,3867.7,2.58551]
[1734039630289,0.798,3869.3,3868.6,2.5849]
[1734039632388,0.798,3869.3,3868.4,2.58502]
[1734039632796,0.798,3869.3,3868.5,2.58496]
[1734039633009,0.798,3869.3,3868.1,2.5852]
[1734039633207,1.136227,3869.3,3868.4,2.58503]
[1734039633786,1.136227,3869.3,3868.5,2.58498]
[1734039633990,1.136227,3869.3,3868.2,2.58518]
[1734039634189,1.136227,3869.3,3868.6,2.58488]
[1734039634190,0.798,3869.3,3868.6,2.58488]
[1734039635230,0.798,3869.3,3868.4,0.7636]
[1734039635396,0.798,3869.3,3868.4,3.34864]
[1734039636222,0.798,3869.3,3868.9,2.58469]
[1734039636620,0.7694,3870.3,3868.5,0.02584553]
[1734039636802,0.7694,3870.3,3868.4,0.7636]
[1734039636803,1.15763953,3870.3,3869.2,2.5845]
[1734039637005,1.15763953,3870.3,3868.6,0.33745355]
[1734039637006,0.7694,3870.2,3868.6,0.33745355]
[1734039637202,0.7694,3869.8,3868.0,0.7636]
[1734039637413,1.33170769,3869.8,3868.0,0.7636]
[1734039637742,0.7694,3869.4,3868.4,2.58502]
[1734039638041,0.335373,3869.3,3868.6,2.58491]
[1734039638236,0.7694,3869.4,3868.6,2.58491]
[1734039638808,0.7694,3869.4,3868.3,2.58505]
[1734039639005,0.7694,3869.4,3868.0,0.7636]
[1734039639223,0.7694,3868.8,3867.3,0.7636]
[1734039639420,0.7694,3868.8,3867.7,2.58545]
[1734039639632,1.104811,3868.8,3867.7,2.58545]
[1734039639841,1.104811,3868.8,3867.5,2.58564]
[1734039639842,2.58497,3868.6,3867.5,2.58564]
[1734039640146,0.7694,3868.5,3867.5,2.58564]
[1734039640818,0.7694,3868.5,3866.9,0.7636]
[1734039640819,0.7694,3868.5,3867.6,2.58551]
[1734039643242,3.35439,3868.5,3867.3,2.58571]
[1734039643445,0.7694,3868.3,3867.1,2.58585]
[1734039643604,0.7694,3868.3,3867.3,2.58578]
[1734039644907,0.7694,3868.3,3866.7,0.89324223]
[1734039645106,0.7694,3868.3,3867.3,2.58574]
[1734039647562,3.35452,3868.3,3867.3,2.58574]
[1734039647931,2.58534,3868.0,3866.7,0.52296326]
[1734039648253,0.7725,3867.9,3866.4,2.58637]
[1734039648450,2.91923067,3868.2,3866.0,2.5866]
[1734039648451,0.7662,3867.3,3866.0,2.5866]
[1734039648683,0.7662,3867.3,3865.2,0.8041]
[1734039648984,0.7662,3867.3,3865.7,2.58685]
[1734039649153,0.7662,3867.3,3865.2,3.39126]
[1734039649154,0.7662,3867.3,3865.2,1.33368502]
[1734039649359,0.52136839,3867.5,3865.2,0.005]
[1734039649360,3.68543067,3867.0,3865.2,0.005]
[1734039649583,0.7662,3866.8,3865.3,2.58705]
[1734039649744,0.7662,3866.8,3865.5,2.58697]
[1734039649947,0.7662,3866.8,3865.2,2.59213]
[1734039650196,0.7662,3866.5,3865.2,0.005]
[1734039650484,0.7662,3866.5,3865.8,2.58674]
[1734039650662,0.36854307,3866.4,3865.8,2.58674]
[1734039651766,0.36854307,3866.4,3865.2,2.59218]
[1734039651767,0.7662,3866.5,3865.2,0.005]
[1734039651965,0.7662,3866.5,3865.4,2.587]
[1734039652171,0.7662,3866.5,3865.9,2.58667]
[1734039653482,0.7662,3866.5,3865.2,0.005]
[1734039653685,0.7662,3866.5,3865.9,2.5867]
[1734039653888,0.7662,3866.5,3865.2,0.005]
[1734039654097,0.7662,3866.5,3865.8,2.58672]
[1734039654268,0.7662,3866.5,3865.6,2.58688]
[1734039654269,0.7662,3866.5,3865.9,2.58669]
[1734039655596,0.7662,3866.5,3865.2,0.005]
[1734039655767,0.7543,3866.3,3865.2,0.005]
[1734039656105,0.7543,3866.3,3865.4,2.58702]
[1734039657614,0.7543,3866.3,3865.9,2.58671]
[1734039657775,0.7543,3866.3,3865.3,2.58712]
[1734039657971,0.7543,3866.3,3865.7,2.5868]
[1734039658209,0.7543,3866.3,3865.9,2.58668]
[1734039659594,0.7543,3866.3,3865.2,0.005]
[1734039659595,0.7543,3866.3,3866.0,2.58661]
[1734039659989,0.7543,3866.3,3865.7,2.58683]
[1734039660585,0.7543,3866.3,3865.8,2.58678]
[1734039660787,0.7543,3866.3,3865.2,0.005]
[1734039660988,0.7674,3866.1,3865.2,0.005]
[1734039661393,2.5868,3865.8,3865.2,0.005]
[1734039661701,0.36735307,3866.2,3865.2,0.005]
[1734039661702,0.7674,3865.7,3865.2,0.005]
[1734039663026,0.7893,3865.6,3865.2,0.005]
[1734039663188,3.37642,3865.3,3865.2,0.005]
[1734039663383,3.37642,3865.3,3864.7,0.005]
[1734039663384,2.58735,3865.0,3864.7,0.005]
[1734039663582,0.7893,3864.9,3864.7,0.005]
[1734039669124,3.3767,3864.9,3864.7,0.005]
[1734039669546,0.7893,3864.9,3864.7,0.005]
[1734039669749,3.3767,3864.9,3864.7,0.005]
[1734039670084,0.33767,3864.8,3864.7,0.005]
[1734039671239,3.70102,3864.8,3864.7,0.005]
[1734039671441,6.05039256,3864.8,3864.7,0.005]
[1734039673275,3.70102,3864.8,3864.7,0.005]
[1734039674275,1.11357,3864.8,3864.7,0.005]
[1734039674480,0.7759,3864.8,3864.7,0.005]
[1734039674994,3.36335,3864.8,3864.7,0.005]
[1734039675549,0.7759,3864.8,3864.7,0.005]
[1734039677063,3.36335,3864.8,3864.7,0.005]
[1734039678164,0.7759,3864.8,3864.7,0.005]
[1734039678369,3.36335,3864.8,3864.7,0.005]
[1734039678662,3.699685,3864.8,3864.7,0.005]
[1734039680046,1.112235,3864.8,3864.7,0.005]
[1734039680246,0.7759,3864.8,3864.7,0.005]
[1734039680866,2.58742,3864.9,3864.7,0.005]
[1734039681185,3.40905,3865.1,3864.7,0.005]
[1734039681349,0.8218,3865.1,3864.7,0.005]
[1734039681751,2.93035571,3865.9,3864.7,0.005]
[1734039682058,1.24806209,3865.8,3864.7,0.005]
[1734039682259,2.58711,3865.4,3864.7,0.005]
[1734039682840,2.58712,3865.3,3864.7,0.005]
[1734039683040,0.8218,3865.2,3864.7,0.005]
[1734039683670,2.58745,3864.8,3864.7,0.005]
[1734039683868,2.846195,3864.8,3864.7,0.005]
[1734039684306,2.58733,3865.0,3864.7,0.005]
[1734039684593,0.8218,3865.2,3864.7,0.005]
[1734039684829,2.58725,3865.1,3864.7,0.005]
[1734039685365,1.33226522,3866.1,3864.8,0.8255]
[1734039685557,2.58666,3866.0,3865.0,2.58728]
[1734039685749,0.56874708,3866.0,3865.1,2.58725]
[1734039686483,0.56874708,3866.0,3865.1,2.58724]
[1734039686952,3.02418003,3866.2,3865.1,2.58724]
[1734039687149,0.43766003,3866.2,3865.2,2.58716]
[1734039687354,0.43766003,3866.2,3865.4,2.58699]
[1734039688813,0.43766003,3866.2,3865.5,2.58696]
[1734039688986,0.43766003,3866.2,3864.9,0.8255]
[1734039689298,0.43766003,3866.2,3864.8,5.58745]
[1734039689299,0.43766003,3866.2,3865.4,0.8255]
[1734039689495,0.43766003,3866.2,3865.6,2.58692]
[1734039689654,0.43766003,3866.2,3865.4,0.8255]
[1734039690079,0.43766003,3866.2,3865.8,2.58675]
[1734039690297,0.43766003,3866.2,3865.6,2.58685]
[1734039690516,0.43766003,3866.2,3865.7,2.928075]
[1734039690892,0.43766003,3866.2,3865.9,2.58671]
[1734039691097,0.43766003,3866.2,3865.7,0.341235]
[1734039691098,0.43766003,3866.2,3866.1,2.58658]
[1734039691404,0.43766003,3866.2,3866.1,3.37238]
[1734039692159,0.43766003,3866.2,3866.1,0.7858]
[1734039692757,0.43766003,3866.2,3865.9,2.58671]
[1734039692960,0.43766003,3866.2,3866.0,2.58664]
[1734039693451,0.43766003,3866.2,3865.9,0.3713745]
[1734039693656,0.43766003,3866.2,3865.4,2.34639263]
[1734039693864,0.43766003,3866.2,3865.6,2.5869]
[1734039694071,0.43766003,3866.2,3865.7,2.58685]
[1734039694356,0.43766003,3866.2,3865.8,0.7858]
[1734039694879,0.43766003,3866.2,3865.8,3.37256]
[1734039696193,0.43766003,3866.2,3866.0,2.58662]
[1734039696489,0.43766003,3866.2,3865.8,3.37258]
[1734039696663,0.43766003,3866.2,3865.8,3.709838]
[1734039697269,0.43766003,3866.2,3865.9,2.5867]
[1734039697650,0.43766003,3866.2,3865.8,1.123058]
[1734039697857,0.7671,3866.9,3865.8,6.05619063]
[1734039698264,0.7671,3866.9,3866.3,2.58638]
[1734039698463,0.7671,3867.3,3866.3,2.845018]
[1734039698667,0.7671,3867.3,3866.6,2.5862]
[1734039698883,0.7671,3867.3,3866.4,3.37212]
[1734039702694,0.7671,3867.3,3866.4,0.7858]
[1734039702866,3.3529,3867.3,3866.4,0.7858]
[1734039703058,3.3529,3867.3,3865.5,0.7509]
[1734039703059,2.58625,3866.6,3865.5,0.7509]
[1734039703292,0.7999,3866.5,3865.5,0.7509]
[1734039704464,0.55,3866.4,3865.5,0.7509]
[1734039705181,0.55,3866.4,3865.2,0.7509]
[1734039705501,0.55,3866.0,3864.8,0.7509]
[1734039705708,0.55,3866.2,3864.9,0.56898726]
[1734039705995,0.55,3866.2,3865.1,2.58719]
[1734039706400,0.55,3866.2,3865.3,2.58707]
[1734039707264,0.55,3866.2,3865.4,2.58704]
[1734039707462,0.55,3866.2,3864.9,0.56898726]
[1734039707665,0.55,3866.2,3865.4,2.58703]
[1734039707868,0.55,3866.2,3865.0,3.27855973]
[1734039708097,0.774,3866.7,3866.3,2.58644]
[1734039708299,0.774,3866.7,3865.9,2.34639263]
[1734039708515,0.774,3866.7,3866.0,2.58658]
[1734039708799,0.774,3866.7,3866.0,1.61639726]
[1734039709058,0.774,3867.3,3866.1,2.58658]
[1734039709322,0.774,3867.3,3866.3,2.58643]
[1734039709920,0.774,3867.3,3866.4,2.58637]
[1734039710125,2.58587,3867.2,3866.2,2.58651]
[1734039710326,0.774,3867.3,3866.3,2.58639]
[1734039710499,0.55,3867.2,3866.3,2.58639]
[1734039712813,0.55,3867.2,3866.2,0.95492999]
[1734039713118,2.75553474,3867.4,3865.6,6.34178]
[1734039713119,0.55,3866.6,3865.6,6.34178]
[1734039713424,0.55,3866.6,3865.6,2.58688]
[1734039713652,3.13626,3866.6,3865.4,2.58704]
[1734039713939,0.55,3866.6,3865.5,2.34639263]
[1734039714089,0.55,3866.6,3865.6,0.49334326]
[1734039714489,0.55,3866.6,3865.8,2.58674]
[1734039714921,0.55,3866.6,3865.5,2.34639263]
[1734039715125,0.55,3866.6,3865.8,2.58673]
[1734039715326,0.55,3866.6,3865.2,3.7549]
[1734039715501,0.55,3866.3,3865.4,2.58705]
[1734039715715,0.55,3865.9,3865.2,0.7549]
[1734039716466,0.55,3866.0,3865.2,0.7549]
[1734039716668,0.55,3866.0,3865.2,3.34206]
[1734039716928,0.55,3866.1,3865.2,3.34206]
[1734039717129,0.94901,3866.5,3865.2,3.34206]
[1734039717130,0.55,3866.3,3865.3,0.02587101]
[1734039717305,0.55,3866.4,3865.4,2.58705]
[1734039719242,0.55,3866.4,3865.3,0.0258684]
[1734039719537,0.55,3866.4,3865.5,2.58698]
[1734039719749,0.55,3866.4,3865.5,2.34639263]
[1734039719946,0.55,3866.4,3865.6,0.5372261]
[1734039720242,0.55,3866.4,3865.7,2.58681]
[1734039721627,0.55,3866.4,3865.6,3.1241261]
[1734039723749,0.55,3866.4,3865.7,2.58684]
[1734039724158,0.8137,3866.5,3865.6,0.5372261]
[1734039724159,0.8137,3866.5,3865.8,0.02586695]
[1734039724451,0.8137,3866.5,3866.1,2.58656]
[1734039724747,0.8137,3866.5,3865.9,2.58671]
[1734039724923,0.8137,3866.5,3866.0,2.58663]
[1734039725112,0.8137,3866.5,3866.0,2.58665]
[1734039725709,0.55,3866.4,3866.0,2.58665]
[1734039725951,0.55,3866.4,3866.0,2.845315]
[1734039726317,0.55,3866.4,3866.0,0.258665]
[1734039726713,0.55,3866.4,3865.9,2.58671]
[1734039726948,0.55,3866.4,3866.0,2.58665]
[1734039727249,0.55,3866.4,3865.5,2.34639263]
[1734039727413,0.55,3866.4,3865.9,2.58669]
[1734039728035,0.55,3866.4,3866.0,2.58664]
[1734039728238,0.55,3866.4,3866.1,0.02586429]
[1734039728471,0.55,3866.4,3866.3,2.58645]
[1734039728838,0.55,3866.4,3866.1,2.58657]
[1734039729264,0.55,3866.4,3866.3,2.58645]
[1734039729567,0.7939,3867.2,3866.6,2.58619]
[1734039730196,0.7939,3867.2,3866.9,2.58602]
[1734039730531,2.75553474,3867.4,3867.2,2.58582]
[1734039730735,2.75553474,3867.4,3867.0,2.58596]
[1734039731004,2.75553474,3867.4,3866.9,0.02585721]
[1734039731005,2.75553474,3867.4,3866.8,0.7879]
[1734039731436,2.75553474,3867.4,3867.1,2.5859]
[1734039731834,0.55,3867.3,3866.8,3.7879]
[1734039732035,2.75553474,3867.4,3866.9,0.79906784]
[1734039732235,0.8318,3867.9,3867.1,2.58588]
[1734039732781,0.8318,3867.9,3867.3,2.58576]
[1734039733138,0.8318,3867.9,3866.9,0.77321059]
[1734039733388,0.55,3867.8,3866.9,0.77321059]
[1734039733593,0.55,3867.8,3867.0,0.69075032]
[1734039735511,1.3098,3867.4,3866.6,0.517264]
[1734039735645,0.55,3867.2,3866.1,2.58657]
[1734039736106,0.55,3866.9,3866.1,2.58657]
[1734039736399,0.55,3866.9,3865.7,5.73640263]
[1734039736543,0.55,3866.9,3866.1,2.34639263]
[1734039736748,0.55,3866.9,3866.3,2.58639]
[1734039736963,0.55,3866.9,3866.4,2.58634]
[1734039737245,0.55,3866.9,3866.6,2.58624]
[1734039737446,0.55,3866.9,3866.2,3.0]
[1734039737701,0.55,3866.9,3866.3,0.53463926]
[1734039738192,0.55,3866.9,3866.3,3.12101926]
[1734039738353,0.55,3866.9,3866.3,0.53463926]
[1734039739174,0.55,3866.9,3866.2,2.34639263]
[1734039739343,0.55,3866.9,3866.4,2.58632]
[1734039739535,0.55,3866.9,3866.2,2.34639263]
[1734039739536,0.55,3866.9,3866.5,2.58627]
[1734039739967,0.55,3866.9,3866.2,2.34639263]
[1734039740173,0.55,3866.9,3866.2,4.93284263]
[1734039740369,0.55,3866.9,3866.3,0.79328426]
[1734039740571,0.55,3866.9,3866.5,2.58626]
[1734039740958,0.7747,3867.5,3866.5,2.58626]
[1734039741475,3.13573,3867.4,3866.3,3.37972426]
[1734039741677,3.13573,3867.4,3866.4,2.58636]
[1734039741853,0.55,3867.4,3866.4,0.57260369]